fUSD/lending_fUSD_20250106
["ID","MTS","AMOUNT","RATE_DAILY","PERIOD"]
[347880512,1736179835641,-500.0,0.00010994,2]
[347880513,1736179835650,-500.0,0.00010995,2]
[347880514,1736179835659,-500.0,0.00010995,2]
[347880515,1736179835669,-500.0,0.00010995,2]
[347880516,1736179835678,-217.02518422,0.00010995,2]
[347880517,1736179835687,-11260.9875,0.00010995,2]
[347880518,1736179835696,-5000.0,0.00010995,2]
[347880519,1736179835706,-500.0,0.00010998,2]
[347880520,1736179835716,-500.0,0.00010998,2]
[347880521,1736179835725,-500.0,0.00010998,2]
[347880522,1736179835734,-500.0,0.00010998,2]
[347880523,1736179835743,-500.0,0.00010998,2]
[347880524,1736179835752,-500.0,0.00010998,2]
[347880525,1736179835761,-500.0,0.00010998,2]
[347880526,1736179835770,-421.163118,0.00010998,2]
[347880527,1736179835779,-893.82,0.00010998,2]
[347880528,1736179835789,-315.505179,0.00010998,2]
[347880529,1736179835798,-164.033512,0.00010998,2]
[347880530,1736179835808,-500.0,0.00010998,2]
[347880531,1736179835819,-500.0,0.00010999,2]
[347880532,1736179835828,-500.0,0.00010999,2]
[347880533,1736179835838,-1545.77,0.00010999,2]
[347880534,1736179835848,-500.0,0.00010999,2]
[347880535,1736179835857,-500.0,0.00010999,2]
[347880536,1736179835868,-191.39741146,0.00010999,2]
[347880537,1736179835878,-500.0,0.00010999,2]
[347880538,1736179835887,-833.06,0.00010999,2]
[347880539,1736179835897,-500.0,0.00010999,2]
[347880540,1736179835907,-500.0,0.00010999,2]
[347880541,1736179835917,-500.0,0.00010999,2]
[347880542,1736179835927,-500.0,0.00010999,2]
[347880543,1736179835937,-500.0,0.00010999,2]
[347880544,1736179835947,-550.0,0.00011,2]
[347880545,1736179835956,-4500.0,0.00011,4]
[347880547,1736179835965,-668.79652407,0.00011024,2]
[347880549,1736179835975,-150.0,0.00011047,2]
[347880551,1736179835986,-150.0,0.00011047,2]
[347880553,1736179835995,-500.0,0.00011092,2]
[347880554,1736179836005,-500.0,0.00011092,2]
[347880555,1736179836014,-531.44188692,0.00011092,2]
[347880556,1736179836024,-524.60491564,0.00011092,2]
[347880557,1736179836034,-500.0,0.00011093,2]
[347880558,1736179836044,-500.0,0.00011093,2]
[347880559,1736179836054,-566.05,0.00011093,2]
[347880560,1736179836065,-500.0,0.00011093,2]
[347880561,1736179836074,-500.0,0.00011093,2]
[347880563,1736179836085,-500.0,0.00011093,2]
[347880565,1736179836095,-521.5,0.00011093,2]
[347880567,1736179836105,-500.0,0.00011093,2]
[347880569,1736179836116,-500.0,0.00011093,2]
[347880571,1736179836126,-500.0,0.00011093,2]
[347880573,1736179836136,-500.0,0.00011093,2]
[347880575,1736179836145,-500.0,0.00011093,2]
[347880577,1736179836155,-500.0,0.00011093,2]
[347880579,1736179836165,-500.0,0.00011093,2]
[347880581,1736179836174,-500.0,0.00011093,2]
[347880583,1736179836184,-500.0,0.00011093,2]
[347880585,1736179836194,-249.47908633,0.00011093,2]
[347880587,1736179836203,-500.0,0.00011093,2]
[347880589,1736179836212,-500.0,0.00011093,2]
[347880591,1736179836222,-500.0,0.00011093,2]
[347880592,1736179836231,-500.0,0.00011093,2]
[347880594,1736179836240,-500.0,0.00011093,2]
[347880595,1736179836249,-500.0,0.00011093,2]
[347880597,1736179836259,-500.0,0.00011093,2]
[347880599,1736179836269,-500.0,0.00011093,2]
[347880601,1736179836279,-500.0,0.00011093,2]
[347880603,1736179836288,-500.0,0.00011093,2]
[347880605,1736179836298,-500.0,0.00011093,2]
[347880607,1736179836308,-500.0,0.00011093,2]
[347880609,1736179836319,-500.0,0.00011093,2]
[347880611,1736179836329,-500.0,0.00011093,2]
[347880613,1736179836339,-500.0,0.00011093,2]
[347880615,1736179836349,-500.0,0.00011093,2]
[347880617,1736179836360,-500.0,0.00011093,2]
[347880619,1736179836370,-500.0,0.00011093,2]
[347880620,1736179836379,-500.0,0.00011093,2]
[347880621,1736179836389,-500.0,0.00011093,2]
[347880622,1736179836398,-587.28,0.00011093,2]
[347880624,1736179836409,-562.73,0.00011093,2]
[347880626,1736179836419,-500.0,0.00011093,2]
[347880628,1736179836429,-500.0,0.00011093,2]
[347880629,1736179836438,-500.0,0.00011093,2]
[347880631,1736179836448,-500.0,0.00011093,2]
[347880633,1736179836458,-549.55,0.00011093,2]
[347880634,1736179836468,-500.0,0.00011093,2]
[347880635,1736179836478,-500.0,0.00011093,2]
[347880636,1736179836491,-500.0,0.00011093,2]
[347880637,1736179836501,-500.0,0.00011093,2]
[347880638,1736179836510,-500.0,0.00011093,2]
[347880639,1736179836520,-500.0,0.00011093,2]
[347880640,1736179836530,-500.0,0.00011093,2]
[347880641,1736179836540,-500.0,0.00011093,2]
[347880642,1736179836550,-500.0,0.00011093,2]
[347880643,1736179836561,-161.66073094,0.00011093,2]
[347880644,1736179836572,-500.0,0.00011093,2]
[347880645,1736179836582,-231.90084023,0.00011093,2]
[347880646,1736179836596,-268.09915977,0.00011093,2]
[347880647,1736179836607,-500.0,0.00011093,2]
[347880648,1736179836617,-500.0,0.00011093,2]
[347880649,1736179836626,-500.0,0.00011093,2]
[347880650,1736179836636,-500.0,0.00011093,2]
[347880651,1736179836645,-500.0,0.00011093,2]
[347880652,1736179836655,-500.0,0.00011093,2]
[347880653,1736179836664,-517.99,0.00011093,2]
[347880654,1736179836673,-500.91863808,0.00011093,2]
[347880655,1736179836683,-169.6877073,0.00011093,2]
[347880656,1736179836693,-500.0,0.00011093,2]
[347880657,1736179836702,-500.0,0.00011093,2]
[347880658,1736179836711,-401.28327479,0.00011093,2]
[347880659,1736179836721,-500.0,0.00011093,2]
[347880660,1736179836730,-500.0,0.00011093,2]
[347880661,1736179836739,-500.0,0.00011093,2]
[347880662,1736179836749,-501.59228628,0.00011093,2]
[347880663,1736179836758,-500.0,0.00011093,2]
[347880664,1736179836769,-500.0,0.00011093,2]
[347880665,1736179836779,-500.0,0.00011093,2]
[347880666,1736179836789,-503.55482168,0.00011093,2]
[347880667,1736179836798,-500.0,0.00011093,2]
[347880668,1736179836808,-500.0,0.00011093,2]
[347880669,1736179836820,-500.0,0.00011093,2]
[347880670,1736179836830,-500.0,0.00011093,2]
[347880671,1736179836842,-500.0,0.00011093,2]
[347880672,1736179836858,-500.0,0.00011093,2]
[347880673,1736179836871,-500.0,0.00011093,2]
[347880674,1736179836881,-332.09,0.00011093,2]
[347880675,1736179836891,-500.0,0.00011093,2]
[347880676,1736179836901,-290.79,0.00011093,2]
[347880677,1736179836911,-200.54,0.00011093,2]
[347880678,1736179836920,-500.0,0.00011093,2]
[347880679,1736179836930,-916.34,0.00011093,2]
[347880680,1736179836940,-500.0,0.00011093,2]
[347880681,1736179836951,-500.0,0.00011093,2]
[347880682,1736179836961,-500.0,0.00011093,2]
[347880683,1736179836970,-359.17,0.00011093,2]
[347880684,1736179836980,-512.26,0.00011093,2]
[347880685,1736179836990,-500.0,0.00011093,2]
[347880686,1736179836999,-500.0,0.00011093,2]
[347880687,1736179837008,-500.0,0.00011093,2]
[347880688,1736179837017,-500.0,0.00011093,2]
[347880689,1736179837027,-500.0,0.00011093,2]
[347880690,1736179837038,-500.0,0.00011093,2]
[347880691,1736179837048,-752.29,0.00011093,2]
[347880692,1736179837058,-552.93,0.00011093,2]
[347880693,1736179837070,-500.0,0.00011093,2]
[347880694,1736179837080,-500.0,0.00011093,2]
[347880695,1736179837090,-500.0,0.00011093,2]
[347880696,1736179837099,-500.0,0.00011093,2]
[347880697,1736179837109,-500.0,0.00011093,2]
[347880698,1736179837119,-500.0,0.00011093,2]
[347880699,1736179837128,-500.0,0.00011093,2]
[347880700,1736179837138,-996.25,0.00011093,2]
[347880701,1736179837147,-500.0,0.00011093,2]
[347880702,1736179837157,-500.0,0.00011093,2]
[347880703,1736179837166,-500.0,0.00011093,2]
[347880704,1736179837175,-551.91,0.00011093,2]
[347880705,1736179837185,-500.0,0.00011093,2]
[347880706,1736179837194,-500.0,0.00011093,2]
[347880707,1736179837204,-500.0,0.00011093,2]
[347880708,1736179837214,-500.0,0.00011093,2]
[347880709,1736179837223,-528.45,0.00011093,2]
[347880710,1736179837233,-316.29,0.00011093,2]
[347880711,1736179837243,-500.0,0.00011093,2]
[347880712,1736179837252,-500.0,0.00011093,2]
[347880713,1736179837264,-362.54,0.00011093,2]
[347880714,1736179837274,-500.0,0.00011093,2]
[347880715,1736179837284,-377.80554471,0.00011093,2]
[347880716,1736179837294,-500.0,0.00011094,2]
[347880717,1736179837304,-500.0,0.00011094,2]
[347880718,1736179837316,-800.58,0.00011094,2]
[347880719,1736179837327,-1176.96,0.00011094,2]
[347880720,1736179837337,-1272.57,0.00011094,2]
[347880721,1736179837346,-500.0,0.00011094,2]
[347880722,1736179837355,-500.0,0.00011094,2]
[347880723,1736179837370,-500.0,0.00011094,2]
[347880724,1736179837382,-643.91,0.00011094,2]
[347880725,1736179837394,-150.0,0.00011095,2]
[347880726,1736179837405,-500.0,0.00011095,2]
[347880727,1736179837415,-500.0,0.00011095,2]
[347880728,1736179837425,-500.0,0.00011095,2]
[347880729,1736179837434,-500.0,0.00011095,2]
[347880730,1736179837445,-537.24,0.00011095,2]
[347880731,1736179837460,-537.24,0.00011095,2]
[347880732,1736179837478,-530.64,0.00011095,2]
[347880733,1736179837489,-530.64,0.00011095,2]
[347880734,1736179837499,-2142.1,0.00011095,2]
[347880735,1736179837511,-766.56,0.00011095,2]
[347880736,1736179837523,-6800.0,0.000111,4]
[347880737,1736179837533,-668.79652407,0.00011141,2]
[347880738,1736179837543,-9000.0,0.000112,4]
[347880739,1736179837555,-500.0,0.00011208,2]
[347880740,1736179837567,-150.0,0.00011232,2]
[347880741,1736179837576,-668.79652407,0.00011259,2]
[347880742,1736179837586,-536.81,0.00011268,2]
[347880743,1736179837596,-897.78,0.00011268,2]
[347880744,1736179837605,-500.0,0.00011268,2]
[347880745,1736179837615,-500.0,0.00011268,2]
[347880746,1736179837624,-523.11,0.00011268,2]
[347880747,1736179837634,-580.89,0.00011268,2]
[347880748,1736179837644,-500.0,0.00011269,2]
[347880749,1736179837655,-500.0,0.00011269,2]
[347880750,1736179837664,-500.0,0.00011269,2]
[347880751,1736179837673,-500.0,0.00011272,2]
[347880752,1736179837683,-500.0,0.00011272,2]
[347880753,1736179837693,-421.163118,0.00011272,2]
[347880754,1736179837702,-893.82,0.00011272,2]
[347880755,1736179837712,-315.505179,0.00011272,2]
[347880756,1736179837721,-500.0,0.00011273,2]
[347880757,1736179837731,-500.0,0.00011273,2]
[347880758,1736179837740,-1545.77,0.00011273,2]
[347880759,1736179837750,-500.0,0.00011273,2]
[347880760,1736179837760,-833.06,0.00011273,2]
[347880761,1736179837769,-500.0,0.00011273,2]
[347880762,1736179837778,-500.0,0.00011273,2]
[347880763,1736179837787,-500.0,0.00011273,2]
[347880764,1736179837796,-500.0,0.00011273,2]
[347880765,1736179837806,-500.0,0.00011273,2]
[347880766,1736179837818,-11300.0,0.000113,4]
[347880767,1736179837827,-1000.0,0.00011333,2]
[347880768,1736179837836,-253.52,0.00011366,2]
[347880769,1736179837845,-500.0,0.00011366,2]
[347880770,1736179837855,-500.0,0.00011367,2]
[347880771,1736179837865,-221.82,0.00011367,2]
[347880772,1736179837875,-179.42,0.00011367,2]
[347880773,1736179837884,-500.0,0.00011367,2]
[347880774,1736179837894,-500.0,0.00011367,2]
[347880775,1736179837904,-500.0,0.00011367,2]
[347880776,1736179837913,-500.0,0.00011367,2]
[347880778,1736179837923,-500.0,0.00011367,2]
[347880779,1736179837932,-500.0,0.00011367,2]
[347880780,1736179837942,-500.0,0.00011367,2]
[347880781,1736179837952,-289.62,0.00011367,2]
[347880782,1736179837961,-500.0,0.00011367,2]
[347880783,1736179837971,-500.0,0.00011367,2]
[347880785,1736179837980,-378.34049213,0.00011367,2]
[347880786,1736179837990,-500.0,0.00011367,2]
[347880787,1736179838000,-521.3,0.00011367,2]
[347880788,1736179838009,-500.0,0.00011367,2]
[347880789,1736179838019,-342.18,0.00011367,2]
[347880790,1736179838028,-500.0,0.00011367,2]
[347880792,1736179838038,-500.0,0.00011367,2]
[347880793,1736179838048,-500.0,0.00011367,2]
[347880794,1736179838057,-419.6,0.00011367,2]
[347880795,1736179838069,-489.6909846,0.00011367,2]
[347880796,1736179838079,-487.66,0.00011367,2]
[347880797,1736179838089,-443.53,0.00011367,2]
[347880798,1736179838100,-500.0,0.00011367,2]
[347880800,1736179838113,-916.34,0.00011367,2]
[347880801,1736179838125,-433.93113812,0.00011367,2]
[347880802,1736179838134,-500.0,0.00011367,2]
[347880803,1736179838143,-500.0,0.00011367,2]
[347880804,1736179838152,-752.29,0.00011367,2]
[347880805,1736179838162,-393.345463,0.00011367,2]
[347880806,1736179838172,-552.93,0.00011367,2]
[347880807,1736179838182,-348.90089877,0.00011367,2]
[347880808,1736179838192,-996.25,0.00011367,2]
[347880809,1736179838201,-500.0,0.00011367,2]
[347880810,1736179838211,-500.0,0.00011367,2]
[347880811,1736179838221,-500.0,0.00011367,2]
[347880812,1736179838231,-500.0,0.00011367,2]
[347880813,1736179838241,-528.45,0.00011367,2]
[347880814,1736179838251,-500.0,0.00011367,2]
[347880815,1736179838262,-500.0,0.00011367,2]
[347880816,1736179838272,-500.0,0.00011367,2]
[347880817,1736179838281,-500.0,0.00011368,2]
[347880818,1736179838291,-500.0,0.00011368,2]
[347880819,1736179838301,-800.58,0.00011368,2]
[347880820,1736179838310,-1176.96,0.00011368,2]
[347880821,1736179838322,-1272.57,0.00011368,2]
[347880822,1736179838332,-500.0,0.00011368,2]
[347880823,1736179838341,-500.0,0.00011368,2]
[347880824,1736179838352,-500.0,0.00011368,2]
[347880825,1736179838361,-150.0,0.00011369,2]
[347880826,1736179838371,-500.0,0.00011369,2]
[347880827,1736179838380,-500.0,0.00011369,2]
[347880828,1736179838390,-435.36,0.00011369,2]
[347880829,1736179838400,-537.24,0.00011369,2]
[347880830,1736179838409,-537.24,0.00011369,2]
[347880831,1736179838419,-530.64,0.00011369,2]
[347880832,1736179838429,-530.64,0.00011369,2]
[347880833,1736179838439,-2142.1,0.00011369,2]
[347880834,1736179838449,-766.56,0.00011369,2]
[347880835,1736179838459,-668.79652407,0.00011376,2]
[347880836,1736179838469,-150.0,0.00011381,2]
[347880837,1736179838478,-3894.0,0.00011381,2]
[347880838,1736179838490,-1022.762,0.00011381,2]
[347880839,1736179838499,-2200.0,0.000114,4]
[347880840,1736179838508,-668.79652407,0.00011493,2]
[347880841,1736179838517,-2200.0,0.000115,4]
[347880842,1736179838527,-150.0,0.00011506,2]
[347880843,1736179838537,-436.69,0.00011534,2]
[347880844,1736179838547,-1016.98,0.00011534,2]
[347880845,1736179838556,-979.32,0.00011534,2]
[347880846,1736179838565,-979.32,0.00011534,2]
[347880847,1736179838576,-1014.72,0.00011542,2]
[347880848,1736179838585,-500.0,0.00011542,2]
[347880849,1736179838595,-500.0,0.00011542,2]
[347880850,1736179838605,-500.0,0.00011542,2]
[347880851,1736179838615,-536.81,0.00011542,2]
[347880852,1736179838624,-507.05251194,0.00011542,2]
[347880853,1736179838634,-500.0,0.00011542,2]
[347880854,1736179838643,-897.78,0.00011542,2]
[347880855,1736179838653,-665.57,0.00011542,2]
[347880856,1736179838662,-500.0,0.00011542,2]
[347880857,1736179838672,-1036.7,0.00011542,2]
[347880858,1736179838681,-1049.72,0.00011542,2]
[347880859,1736179838691,-500.0,0.00011542,2]
[347880860,1736179838700,-500.0,0.00011542,2]
[347880861,1736179838709,-1615.35,0.00011542,2]
[347880862,1736179838719,-523.11,0.00011542,2]
[347880863,1736179838728,-1247.1,0.00011542,2]
[347880864,1736179838737,-580.89,0.00011542,2]
[347880865,1736179838747,-500.0,0.00011543,2]
[347880866,1736179838757,-500.0,0.00011543,2]
[347880867,1736179838766,-460.992342,0.00011543,2]
[347880868,1736179838776,-500.0,0.00011546,2]
[347880869,1736179838785,-500.0,0.00011546,2]
[347880870,1736179838794,-421.163118,0.00011546,2]
[347880871,1736179838804,-893.82,0.00011546,2]
[347880872,1736179838813,-315.505179,0.00011546,2]
[347880873,1736179838823,-500.0,0.00011547,2]
[347880874,1736179838833,-500.0,0.00011547,2]
[347880875,1736179838843,-1545.77,0.00011547,2]
[347880881,1736179839032,-500.0,0.00011547,2]
[347880882,1736179839043,-833.06,0.00011547,2]
[347880883,1736179839053,-500.0,0.00011547,2]
[347880884,1736179839063,-500.0,0.00011547,2]
[347880885,1736179839076,-500.0,0.00011547,2]
[347880886,1736179839086,-330.58636792,0.00011573,2]
[347880887,1736179839097,-2200.0,0.000116,4]
[347880888,1736179839107,-566.0,0.00011605,2]
[347880889,1736179839118,-634.0,0.00011605,2]
[347880890,1736179839127,-668.79652407,0.0001161,2]
[347880891,1736179839137,-500.0,0.0001164,2]
[347880892,1736179839149,-296.49200849,0.00011641,2]
[347880893,1736179839159,-500.0,0.00011641,2]
[347880894,1736179839169,-500.0,0.00011641,2]
[347880895,1736179839179,-500.0,0.00011641,2]
[347880896,1736179839189,-500.0,0.00011641,2]
[347880897,1736179839199,-500.0,0.00011641,2]
[347880898,1736179839209,-500.0,0.00011641,2]
[347880899,1736179839219,-500.0,0.00011641,2]
[347880900,1736179839229,-500.0,0.00011641,2]
[347880901,1736179839239,-500.0,0.00011641,2]
[347880902,1736179839248,-500.0,0.00011641,2]
[347880903,1736179839258,-500.0,0.00011641,2]
[347880904,1736179839268,-634.35244561,0.00011641,2]
[347880905,1736179839278,-500.0,0.00011641,2]
[347880906,1736179839288,-500.0,0.00011641,2]
[347880907,1736179839298,-491.51308165,0.00011641,2]
[347880908,1736179839308,-916.34,0.00011641,2]
[347880909,1736179839320,-752.29,0.00011641,2]
[347880910,1736179839330,-552.93,0.00011641,2]
[347880911,1736179839340,-996.25,0.00011641,2]
[347880912,1736179839350,-500.0,0.00011641,2]
[347880913,1736179839361,-528.45,0.00011641,2]
[347880914,1736179839370,-500.0,0.00011641,2]
[347880915,1736179839380,-500.0,0.00011642,2]
[347880916,1736179839391,-500.0,0.00011642,2]
[347880917,1736179839401,-800.58,0.00011642,2]
[347880918,1736179839410,-1176.96,0.00011642,2]
[347880919,1736179839420,-1272.57,0.00011642,2]
[347880920,1736179839430,-500.0,0.00011642,2]
[347880921,1736179839439,-500.0,0.00011642,2]
[347880922,1736179839448,-150.0,0.00011643,2]
[347880923,1736179839458,-500.0,0.00011643,2]
[347880924,1736179839471,-500.0,0.00011643,2]
[347880925,1736179839480,-537.24,0.00011643,2]
[347880926,1736179839490,-537.24,0.00011643,2]
[347880927,1736179839499,-530.64,0.00011643,2]
[347880928,1736179839510,-530.64,0.00011643,2]
[347880929,1736179839519,-2142.1,0.00011643,2]
[347880930,1736179839528,-766.56,0.00011643,2]
[347880931,1736179839538,-182.83,0.00011671,2]
[347880932,1736179839550,-552.212,0.0001168,2]
[347880933,1736179839561,-2200.0,0.000117,4]
[347880934,1736179839572,-668.79652407,0.00011728,2]
[347880935,1736179839581,-150.0,0.0001178,2]
[347880936,1736179839591,-200.0,0.000118,2]
[347880937,1736179839600,-2742.0,0.000118,4]
[347880938,1736179839609,-1014.72,0.00011816,2]
[347880939,1736179839619,-500.0,0.00011816,2]
[347880940,1736179839628,-217.85292876,0.00011816,2]
[347880941,1736179839638,-536.81,0.00011816,2]
[347880942,1736179839647,-500.0,0.00011816,2]
[347880943,1736179839657,-897.78,0.00011816,2]
[347880944,1736179839666,-665.57,0.00011816,2]
[347880945,1736179839675,-500.0,0.00011816,2]
[347880946,1736179839684,-1036.7,0.00011816,2]
[347880947,1736179839694,-1049.72,0.00011816,2]
[347880948,1736179839703,-500.0,0.00011816,2]
[347880949,1736179839713,-500.0,0.00011816,2]
[347880950,1736179839722,-1615.35,0.00011816,2]
[347880951,1736179839731,-523.11,0.00011816,2]
[347880952,1736179839740,-1247.1,0.00011816,2]
[347880953,1736179839750,-580.89,0.00011816,2]
[347880954,1736179839759,-500.0,0.00011817,2]
[347880955,1736179839769,-500.0,0.00011817,2]
[347880956,1736179839777,-500.0,0.0001182,2]
[347880957,1736179839787,-500.0,0.0001182,2]
[347880958,1736179839796,-421.163118,0.0001182,2]
[347880959,1736179839805,-893.82,0.0001182,2]
[347880960,1736179839815,-315.505179,0.0001182,2]
[347880961,1736179839827,-500.0,0.00011821,2]
[347880962,1736179839836,-500.0,0.00011821,2]
[347880963,1736179839845,-1545.77,0.00011821,2]
[347880964,1736179839854,-500.0,0.00011821,2]
[347880965,1736179839864,-833.06,0.00011821,2]
[347880966,1736179839873,-500.0,0.00011821,2]
[347880967,1736179839883,-500.0,0.00011821,2]
[347880968,1736179839892,-668.79652407,0.00011845,2]
[347880969,1736179839901,-433.0,0.00011855,2]
[347880970,1736179839911,-308.47,0.00011915,2]
[347880971,1736179839921,-500.0,0.00011915,2]
[347880972,1736179839930,-538.36,0.00011915,2]
[347880973,1736179839939,-476.97,0.00011915,2]
[347880975,1736179839949,-500.0,0.00011915,2]
[347880976,1736179839959,-363.35714898,0.00011915,2]
[347880977,1736179839968,-500.0,0.00011915,2]
[347880978,1736179839978,-330.17,0.00011915,2]
[347880979,1736179839987,-485.76,0.00011915,2]
[347880980,1736179839996,-500.0,0.00011915,2]
[347880982,1736179840006,-463.59,0.00011915,2]
[347880984,1736179840015,-500.0,0.00011915,2]
[347880986,1736179840024,-605.47970365,0.00011915,2]
[347880988,1736179840033,-916.34,0.00011915,2]
[347880990,1736179840042,-752.29,0.00011915,2]
[347880992,1736179840052,-552.93,0.00011915,2]
[347880993,1736179840061,-996.25,0.00011915,2]
[347880994,1736179840073,-500.0,0.00011915,2]
[347880995,1736179840083,-528.45,0.00011915,2]
[347880996,1736179840092,-500.0,0.00011915,2]
[347880997,1736179840101,-500.0,0.00011916,2]
[347880999,1736179840110,-500.0,0.00011916,2]
[347881000,1736179840119,-800.58,0.00011916,2]
[347881001,1736179840129,-1176.96,0.00011916,2]
[347881002,1736179840138,-1272.57,0.00011916,2]
[347881003,1736179840148,-500.0,0.00011916,2]
[347881004,1736179840157,-500.0,0.00011916,2]
[347881005,1736179840166,-150.0,0.00011917,2]
[347881006,1736179840175,-500.0,0.00011917,2]
[347881007,1736179840184,-500.0,0.00011917,2]
[347881008,1736179840193,-537.24,0.00011917,2]
[347881009,1736179840203,-537.24,0.00011917,2]
[347881010,1736179840213,-530.64,0.00011917,2]
[347881012,1736179840222,-530.64,0.00011917,2]
[347881014,1736179840231,-2142.1,0.00011917,2]
[347881016,1736179840241,-766.56,0.00011917,2]
[347881018,1736179840251,-668.79652407,0.00011962,2]
[347881020,1736179840260,-9618.9562951,0.00011999,3]
[347881022,1736179840269,-10000.0,0.00012,2]
[347881024,1736179840278,-5994.2666,0.00012,2]
[347881026,1736179840288,-1320.0593,0.00012,2]
[347881028,1736179840298,-1001.0,0.00012,2]
[347881030,1736179840307,-1000.0,0.00012,2]
[347881032,1736179840317,-1000.0,0.00012,3]
[347881034,1736179840328,-1000.0,0.00012027,2]
[347881036,1736179840338,-150.0,0.00012038,2]
[347881038,1736179840348,-346.6633568,0.00012053,2]
[347881040,1736179840358,-150.0,0.00012054,2]
[347881042,1736179840367,-302.24,0.00012061,2]
[347881044,1736179840377,-668.79652407,0.00012079,2]
[347881046,1736179840389,-150.0,0.00012089,2]
[347881048,1736179840399,-1014.72,0.0001209,2]
[347881050,1736179840409,-500.0,0.0001209,2]
[347881052,1736179840419,-536.81,0.0001209,2]
[347881053,1736179840429,-500.0,0.0001209,2]
[347881054,1736179840439,-897.78,0.0001209,2]
[347881055,1736179840449,-665.57,0.0001209,2]
[347881057,1736179840459,-500.0,0.0001209,2]
[347881059,1736179840469,-1036.7,0.0001209,2]
[347881061,1736179840480,-1049.72,0.0001209,2]
[347881063,1736179840493,-500.0,0.0001209,2]
[347881065,1736179840502,-500.0,0.0001209,2]
[347881067,1736179840513,-1615.35,0.0001209,2]
[347881069,1736179840523,-523.11,0.0001209,2]
[347881071,1736179840532,-1247.1,0.0001209,2]
[347881073,1736179840542,-500.0,0.00012091,2]
[347881075,1736179840552,-500.0,0.00012091,2]
[347881077,1736179840561,-500.0,0.00012094,2]
[347881079,1736179840573,-500.0,0.00012094,2]
[347881080,1736179840582,-421.163118,0.00012094,2]
[347881081,1736179840592,-893.82,0.00012094,2]
[347881082,1736179840602,-315.505179,0.00012094,2]
[347881083,1736179840613,-500.0,0.00012095,2]
[347881084,1736179840624,-500.0,0.00012095,2]
[347881085,1736179840634,-1545.77,0.00012095,2]
[347881086,1736179840643,-500.0,0.00012095,2]
[347881087,1736179840653,-833.06,0.00012095,2]
[347881088,1736179840662,-500.0,0.00012095,2]
[347881089,1736179840672,-500.0,0.00012095,2]
[347881090,1736179840681,-500.0,0.00012099,2]
[347881091,1736179840691,-572.58008198,0.00012099,2]
[347881092,1736179840701,-500.0,0.00012099,2]
[347881093,1736179840710,-500.0,0.00012099,2]
[347881094,1736179840720,-500.0,0.00012099,2]
[347881095,1736179840729,-132815.42782884,0.000121,2]
[347881096,1736179840753,-267022.85564151,0.000121,2]
[347881097,1736179840763,-1603.48,0.000121,2]
[347881098,1736179840772,-6000.0,0.000121,2]